lending/lending_fUSD_20250808
["ID","MTS","AMOUNT","RATE_DAILY","PERIOD"]
[378014885,1754668258798,-150.0,0.00018667,2]
[378014886,1754668258807,-1035.52,0.0001867,2]
[378014887,1754668258818,-839.65,0.0001867,2]
[378014888,1754668258828,-400.0,0.0001867,2]
[378014889,1754668258837,-211.58468541,0.0001867,2]
[378014890,1754668258847,-400.0,0.0001867,2]
[378014891,1754668258857,-400.0,0.0001867,2]
[378014892,1754668258867,-400.0,0.0001867,2]
[378014893,1754668258876,-401.59115523,0.00018671,2]
[378014894,1754668258886,-400.0,0.00018671,2]
[378014895,1754668258896,-486.56046854,0.00018671,2]
[378014896,1754668258906,-428.34,0.00018671,2]
[378014897,1754668258916,-403.90254609,0.00018671,2]
[378014898,1754668258926,-402.17312274,0.00018671,2]
[378014899,1754668258938,-400.0,0.00018671,2]
[378014900,1754668258948,-401.83388133,0.00018671,2]
[378014901,1754668258958,-400.0,0.00018671,2]
[378014902,1754668258968,-400.0,0.00018671,2]
[378014903,1754668258978,-823.25,0.00018671,2]
[378014904,1754668258989,-297.94875016,0.00018671,2]
[378014905,1754668259000,-401.64401577,0.00018671,2]
[378014906,1754668259014,-1130.59,0.00018671,2]
[378014907,1754668259033,-400.0,0.00018671,2]
[378014908,1754668259053,-400.0,0.00018671,2]
[378014909,1754668259071,-402.13623339,0.00018671,2]
[378014910,1754668259082,-1149.66,0.00018671,2]
[378014911,1754668259094,-400.0,0.00018671,2]
[378014912,1754668259104,-400.0,0.00018671,2]
[378014913,1754668259115,-400.0,0.00018671,2]
[378014914,1754668259125,-428.25,0.00018671,2]
[378014915,1754668259135,-400.0,0.00018671,2]
[378014916,1754668259146,-474.62,0.00018671,2]
[378014917,1754668259156,-530.0,0.00018671,2]
[378014918,1754668259166,-525.5,0.00018671,2]
[378014919,1754668259176,-400.0,0.00018671,2]
[378014920,1754668259186,-404.52979338,0.00018671,2]
[378014921,1754668259196,-401.64123455,0.00018671,2]
[378014922,1754668259207,-501.98,0.00018671,2]
[378014923,1754668259218,-400.0,0.00018671,2]
[378014924,1754668259228,-1145.05,0.00018671,2]
[378014925,1754668259238,-400.0,0.00018671,2]
[378014926,1754668259248,-409.81,0.00018671,2]
[378014927,1754668259261,-530.0,0.00018671,2]
[378014928,1754668259271,-400.0,0.00018671,2]
[378014929,1754668259283,-533.6,0.00018671,2]
[378014930,1754668259295,-788.91,0.00018671,2]
[378014931,1754668259306,-400.0,0.00018671,2]
[378014932,1754668259317,-401.59710769,0.00018671,2]
[378014933,1754668259327,-400.0,0.00018671,2]
[378014934,1754668259338,-349.62262464,0.00018671,2]
[378014935,1754668259348,-569.82,0.00018671,2]
[378014936,1754668259364,-740.07,0.00018671,2]
[378014937,1754668259386,-3982.27,0.00018671,2]
[378014938,1754668259397,-400.0,0.00018671,2]
[378014939,1754668259408,-400.0,0.00018671,2]
[378014940,1754668259644,-965.07,0.00018671,2]
[378014941,1754668259655,-400.0,0.00018671,2]
[378014942,1754668259665,-400.0,0.00018671,2]
[378014943,1754668259675,-400.0,0.00018671,2]
[378014944,1754668259685,-416.46,0.00018671,2]
[378014945,1754668259696,-497.89,0.00018671,2]
[378014946,1754668259706,-471.32,0.00018671,2]
[378014947,1754668259715,-400.0,0.00018671,2]
[378014948,1754668259725,-400.0,0.00018671,2]
[378014949,1754668259735,-400.0,0.00018671,2]
[378014950,1754668259745,-2808.46,0.00018671,2]
[378014951,1754668259754,-400.0,0.00018671,2]
[378014952,1754668259764,-167.0253758,0.00018671,2]
[378014953,1754668259774,-400.0,0.00018671,2]
[378014954,1754668259784,-2658.86,0.00018671,2]
[378014955,1754668259795,-400.0,0.00018671,2]
[378014956,1754668259805,-400.0,0.00018671,2]
[378014957,1754668259822,-562.73,0.00018671,2]
[378014958,1754668259833,-400.0,0.00018671,2]
[378014959,1754668259844,-400.0,0.00018671,2]
[378014960,1754668259854,-400.0,0.00018671,2]
[378014961,1754668259865,-1118.42,0.00018671,2]
[378014962,1754668259876,-400.0,0.00018671,2]
[378014963,1754668259886,-400.0,0.00018671,2]
[378014964,1754668259896,-412.67,0.00018671,2]
[378014965,1754668259907,-400.0,0.00018671,2]
[378014966,1754668259917,-400.0,0.00018671,2]
[378014967,1754668259928,-400.0,0.00018671,2]
[378014968,1754668259938,-400.0,0.00018671,2]
[378014969,1754668259948,-565.42,0.00018671,2]
[378014970,1754668259958,-400.0,0.00018671,2]
[378014971,1754668259968,-3055.22,0.00018671,2]
[378014972,1754668259978,-400.0,0.00018671,2]
[378014973,1754668259987,-400.0,0.00018671,2]
[378014974,1754668259997,-400.0,0.00018671,2]
[378014975,1754668260008,-401.55736131,0.00018671,2]
[378014976,1754668260019,-400.0,0.00018671,2]
[378014977,1754668260031,-1118.643295,0.00018671,2]
[378014978,1754668260045,-400.77123626,0.00018671,2]
[378014979,1754668260055,-178.07386797,0.00018671,2]
[378014980,1754668260065,-719.85,0.00018671,2]
[378014981,1754668260075,-1515.24,0.00018671,2]
[378014982,1754668260085,-517.04,0.00018671,2]
[378014983,1754668260095,-1346.331212,0.00018671,2]
[378014984,1754668260106,-400.0,0.00018671,2]
[378014985,1754668260116,-1525.48,0.00018671,2]
[378014986,1754668260127,-808.01,0.00018671,2]
[378014987,1754668260137,-400.0,0.00018671,2]
[378014988,1754668260146,-402.72,0.00018671,2]
[378014989,1754668260156,-521.49,0.00018671,2]
[378014990,1754668260166,-400.0,0.00018671,2]
[378014991,1754668260178,-400.0,0.00018671,2]
[378014992,1754668260190,-400.0,0.00018671,2]
[378014993,1754668260199,-709.52593435,0.00018671,2]
[378014994,1754668260218,-582.7619475,0.00018671,2]
[378014995,1754668260491,-661.54,0.00018498,2]
[378014996,1754668260501,-778.472,0.00018671,2]
[378014997,1754668260515,-498.04987622,0.00018671,2]
[378014998,1754668260538,-993.29480925,0.00018671,2]
[378014999,1754668260568,-650.56543268,0.00018671,2]
[378015000,1754668260578,-400.0,0.00018671,2]
[378015001,1754668260587,-400.0,0.00018671,2]
[378015002,1754668260596,-402.35032003,0.00018671,2]
[378015003,1754668260607,-400.0,0.00018671,2]
[378015004,1754668260616,-1123.05,0.00018671,2]
[378015005,1754668260625,-934.65771,0.00018671,2]
[378015006,1754668260635,-402.03388219,0.00018671,2]
[378015007,1754668260644,-840.5,0.00018671,2]
[378015008,1754668260653,-663.89,0.00018671,2]
[378015009,1754668260664,-400.0,0.00018671,2]
[378015010,1754668260675,-3117.55,0.00018671,2]
[378015011,1754668260685,-400.0,0.00018671,2]
[378015012,1754668260695,-423.47,0.00018671,2]
[378015013,1754668260705,-400.0,0.00018671,2]
[378015014,1754668260714,-1180.58,0.00018671,2]
[378015015,1754668260724,-400.0,0.00018671,2]
[378015016,1754668260733,-519.42887158,0.00018671,2]
[378015017,1754668260743,-400.0,0.00018671,2]
[378015018,1754668260753,-1126.78,0.00018671,2]
[378015019,1754668260763,-400.0,0.00018671,2]
[378015020,1754668260773,-400.0,0.00018671,2]
[378015021,1754668260784,-431.57,0.00018671,2]
[378015022,1754668260795,-542.12,0.00018671,2]
[378015023,1754668260805,-1211.5,0.00018671,2]
[378015024,1754668260814,-400.0,0.00018671,2]
[378015025,1754668260825,-484.24492868,0.00018671,2]
[378015026,1754668260834,-308.21,0.00018671,2]
[378015027,1754668260844,-451.94610817,0.00018671,2]
[378015028,1754668260853,-400.0,0.00018671,2]
[378015029,1754668260863,-400.0,0.00018671,2]
[378015030,1754668260873,-4254.68,0.00018671,2]
[378015031,1754668260883,-435.38,0.00018671,2]
[378015032,1754668260893,-457.76,0.00018671,2]
[378015033,1754668260903,-400.0,0.00018671,2]
[378015034,1754668260915,-1042.64,0.00018671,2]
[378015035,1754668260924,-552.82,0.00018671,2]
[378015036,1754668260933,-400.0,0.00018671,2]
[378015037,1754668260943,-400.0,0.00018671,2]
[378015038,1754668260952,-400.0,0.00018671,2]
[378015039,1754668260962,-400.0,0.00018671,2]
[378015040,1754668260972,-1280.91,0.00018671,2]
[378015041,1754668260982,-1276.28,0.00018671,2]
[378015042,1754668260991,-1902.39,0.00018671,2]
[378015043,1754668261000,-285.33,0.00018671,2]
[378015044,1754668261012,-400.0,0.00018671,2]
[378015045,1754668261022,-400.0,0.00018671,2]
[378015046,1754668261032,-400.0,0.00018671,2]
[378015047,1754668261042,-401.96422503,0.00018671,2]
[378015048,1754668261051,-474.8,0.00018671,2]
[378015049,1754668261061,-401.2899941,0.00018671,2]
[378015050,1754668261071,-400.0,0.00018671,2]
[378015051,1754668261080,-400.0,0.00018671,2]
[378015052,1754668261090,-1100.12529466,0.00018671,2]
[378015053,1754668261103,-3357.07470534,0.00018671,2]
[378015054,1754668261113,-2469.77,0.00018671,2]
[378015055,1754668261123,-605.15529466,0.00018671,2]
[378015056,1754668285851,225.48,0.00013699,2]
[378015057,1754668309068,175.0,0.00017742,7]
[378015058,1754668312865,150.0,0.000144,2]
[378015059,1754668313263,150.0,0.0001558,2]
[378015060,1754668313652,150.0,0.0001677,2]
[378015061,1754668314156,150.0,0.0001795,2]
[378015062,1754668314789,150.0,0.00017742,2]
[378015069,1754668564311,176.27,0.00017549,2]
[378015073,1754668750841,208.84,0.00017525,2]
[378015074,1754668751063,208.84,0.000177,2]
[378015076,1754668827554,666.0,0.00017423,3]
[378015077,1754668833449,150.0,0.000144,2]
[378015078,1754668833700,150.0,0.0001558,2]
[378015079,1754668834075,150.0,0.0001677,2]
[378015080,1754668834439,150.0,0.0001795,2]
[378015081,1754668853869,200.0,0.0001742,2]
[378015086,1754668909544,418.55,0.00017403,2]
[378015087,1754668931361,391.323968,0.00017925,2]
[378015088,1754668935504,200.0,0.00017404,2]
[378015089,1754668979206,355.28,0.00015068,2]
[378015090,1754668979431,355.28,0.00016634,2]
[378015094,1754669086120,518.0,0.00017987,2]
[378015095,1754669116056,150.0,0.00017088,2]
[378015096,1754669116215,150.0,0.00017088,2]
[378015097,1754669121701,150.0,0.00017088,2]
[378015098,1754669125438,467.89,0.00017372,2]
[378015099,1754669135924,150.0,0.00017088,2]
[378015100,1754669135978,150.0,0.00017359,2]
[378015101,1754669136009,150.0,0.0001763,2]
[378015102,1754669136170,150.0,0.00017901,2]
[378015104,1754669210462,214.2,0.00013699,2]
[378015108,1754669261098,500.0,0.000179,6]
[378015109,1754669296095,1000.0,0.00017342,2]
[378015110,1754669303808,152.87596596,0.00018003,2]
[378015111,1754669350902,150.0,0.000144,2]
[378015112,1754669351319,150.0,0.0001558,2]
[378015113,1754669351723,150.0,0.0001677,2]
[378015114,1754669352167,150.0,0.0001795,2]
[378015119,1754669431768,-2500.0,0.00018066,2]
[378015120,1754669431779,-250.0,0.00018103,2]
[378015121,1754669431789,-2500.0,0.0001814,2]
[378015122,1754669431800,-150.0,0.00018173,2]
[378015123,1754669431810,-2218.1006796,0.00018194,2]
[378015124,1754669431821,-1200.0,0.00018197,2]
[378015125,1754669431832,-981.9811,0.00018198,2]
[378015126,1754669431843,-355.28,0.00018199,2]
[378015127,1754669431852,-176.27,0.00018207,2]
[378015128,1754669431864,-517.14607362,0.00018256,2]
[378015129,1754669431874,-300.0,0.00018272,2]
[378015130,1754669431884,-300.0,0.00018272,2]
[378015131,1754669431894,-418.55,0.00018274,2]
[378015132,1754669431905,-267.46074303,0.00018277,2]
[378015133,1754669431915,-4997.99374829,0.00018277,2]
[378015134,1754669431924,-850.0,0.00018286,2]
[378015135,1754669431935,-600.0,0.00018287,2]
[378015136,1754669431945,-187.51237052,0.00018287,2]
[378015137,1754669431955,-151.0,0.00018287,2]
[378015138,1754669431965,-500.0,0.00018287,2]
[378015139,1754669431975,-160.0,0.00018287,2]
[378015140,1754669431985,-613.3567884,0.00018287,2]
[378015141,1754669431995,-500.0,0.00018287,2]
[378015142,1754669432005,-151.0,0.00018287,2]
[378015143,1754669432014,-301.99,0.00018287,2]
[378015144,1754669432024,-613.96058418,0.00018287,2]
[378015145,1754669432034,-174.57875854,0.00018287,2]
[378015146,1754669432043,-151.0,0.00018287,2]
[378015147,1754669432054,-6965.80788068,0.00018288,2]
[378015148,1754669432063,-1650.0,0.00018294,2]
[378015149,1754669432073,-7095.10274431,0.00018295,2]
[378015150,1754669432082,-1374.6054,0.00018296,2]
[378015151,1754669432091,-517.14607362,0.00018296,2]
[378015152,1754669432101,-159.09120947,0.00018296,2]
[378015153,1754669432113,-5726.70021576,0.00018296,2]
[378015154,1754669432123,-231.73649548,0.00018296,2]
[378015155,1754669432132,-189.46591016,0.00018296,2]
[378015156,1754669432142,-2593.396,0.00018297,2]
[378015157,1754669432151,-1516.27892273,0.00018298,2]
[378015159,1754669432199,-3189.45119499,0.00018298,2]
[378015163,1754669432227,-17821.89244215,0.00018298,2]
[378015165,1754669432239,-364.13460808,0.00018298,2]
[378015190,1754669437537,-1166.14996,0.00018298,2]
[378015194,1754669437615,-50206.30807205,0.00018298,2]
[378015195,1754669437625,-500.0,0.00018342,2]
[378015196,1754669437634,-151.78,0.00018356,2]
[378015197,1754669437644,-850.7241647,0.00018366,2]
[378015198,1754669437654,-2218.04,0.0001837,2]
[378015199,1754669437666,-500.0,0.00018373,2]
[378015200,1754669437676,-500.0,0.00018373,2]
[378015201,1754669437686,-500.0,0.00018373,2]
[378015202,1754669437698,-500.0,0.00018373,2]
[378015203,1754669437708,-500.0,0.00018373,2]
[378015204,1754669437721,-500.0,0.00018373,2]
[378015205,1754669437731,-500.0,0.00018373,2]
[378015206,1754669437828,-500.0,0.00018373,2]
[378015207,1754669437837,-973.56,0.00018385,2]
[378015208,1754669437847,-500.0,0.00018394,2]
[378015209,1754669437855,-500.0,0.00018394,2]
[378015210,1754669437865,-500.0,0.00018394,2]
[378015211,1754669437874,-500.0,0.00018394,2]
[378015212,1754669437883,-163.69124555,0.00018394,2]
[378015213,1754669437894,-153.17587638,0.00018394,2]
[378015214,1754669437904,-500.0,0.00018394,2]
[378015215,1754669437913,-500.0,0.00018394,2]
[378015216,1754669437922,-500.0,0.00018394,2]
[378015217,1754669437932,-499.61901246,0.00018394,2]
[378015218,1754669437941,-500.0,0.00018394,2]
[378015219,1754669437950,-7095.10274429,0.00018395,2]
[378015220,1754669437959,-373.70680427,0.00018395,2]
[378015221,1754669437968,-400.0,0.00018395,2]
[378015222,1754669437977,-589.79,0.00018395,2]
[378015223,1754669437986,-437.48,0.00018395,2]
[378015224,1754669437995,-400.0,0.00018395,2]
[378015225,1754669438004,-778.37,0.00018395,2]
[378015226,1754669438014,-1040.75,0.00018395,2]
[378015227,1754669438023,-400.0,0.00018395,2]
[378015228,1754669438032,-400.0,0.00018395,2]
[378015229,1754669438041,-582.38,0.00018395,2]
[378015230,1754669438050,-832.82,0.00018395,2]
[378015231,1754669438059,-400.0,0.00018395,2]
[378015232,1754669438068,-400.0,0.00018395,2]
[378015233,1754669438077,-730.78,0.00018395,2]
[378015234,1754669438087,-400.0,0.00018395,2]
[378015235,1754669438096,-400.0,0.00018395,2]
[378015236,1754669438105,-978.87,0.00018395,2]
[378015237,1754669438114,-451.44042409,0.00018395,2]
[378015238,1754669438124,-402.32068561,0.00018395,2]
[378015239,1754669438133,-859.46,0.00018395,2]
[378015240,1754669438142,-400.0,0.00018395,2]
[378015241,1754669438151,-400.0,0.00018395,2]
[378015242,1754669438160,-400.0,0.00018395,2]
[378015243,1754669438171,-400.0,0.00018395,2]
[378015244,1754669438180,-1294.52,0.00018395,2]
[378015246,1754669438189,-400.0,0.00018395,2]
[378015247,1754669438198,-401.76795678,0.00018395,2]
[378015249,1754669438207,-400.0,0.00018395,2]
[378015250,1754669438217,-400.0,0.00018395,2]
[378015252,1754669438226,-400.0,0.00018395,2]
[378015253,1754669438235,-400.0,0.00018395,2]
[378015254,1754669438244,-400.0,0.00018395,2]
[378015255,1754669438254,-1018.54,0.00018395,2]
[378015257,1754669438263,-402.14068381,0.00018395,2]
[378015259,1754669438272,-400.0,0.00018395,2]
[378015261,1754669438281,-401.9443557,0.00018395,2]
[378015263,1754669438290,-595.29,0.00018395,2]
[378015265,1754669438299,-400.0,0.00018395,2]
[378015266,1754669438308,-400.0,0.00018395,2]
[378015267,1754669438317,-412.01802045,0.00018395,2]
[378015268,1754669438326,-670.33,0.00018395,2]
[378015269,1754669438336,-400.0,0.00018395,2]
[378015270,1754669438345,-400.0,0.00018395,2]
[378015271,1754669438354,-400.0,0.00018395,2]
[378015272,1754669438362,-401.15077343,0.00018395,2]
[378015273,1754669438372,-400.0,0.00018395,2]
[378015274,1754669438381,-400.0,0.00018395,2]
[378015275,1754669438391,-410.61,0.00018395,2]
[378015276,1754669438399,-1685.44,0.00018395,2]
[378015277,1754669438408,-504.11,0.00018395,2]
[378015278,1754669438418,-409.12555293,0.00018395,2]
[378015279,1754669438427,-400.07,0.00018395,2]
[378015280,1754669438437,-400.0,0.00018395,2]
[378015281,1754669438446,-4814.45,0.00018395,2]
[378015282,1754669438455,-400.0,0.00018395,2]
[378015283,1754669438465,-400.0,0.00018395,2]
[378015284,1754669438475,-400.0,0.00018395,2]
[378015285,1754669438484,-400.0,0.00018395,2]
[378015286,1754669438493,-475.53,0.00018395,2]
[378015287,1754669438503,-500.0,0.00018395,2]
[378015288,1754669438512,-715.42,0.00018395,2]
[378015289,1754669438522,-400.0,0.00018395,2]
[378015290,1754669438531,-601.22,0.00018395,2]
[378015291,1754669438541,-155.776285,0.00018395,2]
[378015292,1754669438551,-400.0,0.00018395,2]
[378015293,1754669438560,-400.0,0.00018395,2]
[378015294,1754669438569,-400.0,0.00018395,2]
[378015295,1754669438579,-586.59,0.00018395,2]
[378015296,1754669438588,-1231.15,0.00018395,2]
[378015297,1754669438598,-400.0,0.00018395,2]
[378015298,1754669438609,-400.0,0.00018395,2]
[378015299,1754669438619,-552.5,0.00018395,2]
[378015300,1754669438630,-152.542267,0.00018395,2]
[378015301,1754669438639,-2455.66,0.00018395,2]
[378015302,1754669438650,-1053.85,0.00018395,2]
[378015303,1754669438660,-401.61232445,0.00018395,2]
[378015304,1754669438671,-224.907018,0.00018395,2]
[378015305,1754669438681,-208.68438267,0.00018395,2]
[378015306,1754669438692,-905.25,0.00018395,2]
[378015307,1754669438702,-400.0,0.00018395,2]
[378015308,1754669438712,-2834.45,0.00018395,2]
[378015309,1754669438722,-400.0,0.00018395,2]
[378015310,1754669438732,-400.0,0.00018395,2]
[378015311,1754669438743,-400.0,0.00018395,2]
[378015312,1754669438753,-400.0,0.00018395,2]
[378015313,1754669438764,-1433.1,0.00018395,2]
[378015314,1754669438773,-1066.3,0.00018395,2]
[378015315,1754669438782,-1410.13,0.00018395,2]
[378015316,1754669438792,-401.0179865,0.00018395,2]
[378015317,1754669438801,-400.0,0.00018395,2]
[378015318,1754669438811,-944.36,0.00018395,2]
[378015319,1754669438820,-518.56,0.00018395,2]
[378015320,1754669438830,-754.73,0.00018395,2]
[378015321,1754669438839,-1050.54,0.00018395,2]
[378015322,1754669438849,-591.08,0.00018395,2]
[378015323,1754669438859,-400.0,0.00018395,2]
[378015324,1754669438869,-400.0,0.00018395,2]
[378015325,1754669438880,-400.0,0.00018395,2]
[378015326,1754669438889,-1107.48,0.00018395,2]
[378015327,1754669438899,-469.73,0.00018395,2]
[378015328,1754669438909,-400.0,0.00018395,2]
[378015329,1754669438919,-400.0,0.00018395,2]
[378015330,1754669438928,-3687.73,0.00018395,2]
[378015331,1754669438938,-531.1,0.00018395,2]
[378015332,1754669438947,-490.29,0.00018395,2]
[378015333,1754669438956,-834.33,0.00018395,2]
[378015334,1754669438965,-667.47,0.00018395,2]
[378015335,1754669438975,-2574.42,0.00018395,2]
[378015336,1754669438985,-3938.15,0.00018395,2]
[378015337,1754669438994,-1036.67,0.00018395,2]
[378015338,1754669439003,-402.08194913,0.00018395,2]
[378015339,1754669439013,-1800.54,0.00018395,2]
[378015340,1754669439022,-3054.85,0.00018395,2]
[378015341,1754669439032,-1006.77,0.00018395,2]
[378015342,1754669439041,-1025.22,0.00018395,2]
[378015343,1754669439051,-401.43317853,0.00018395,2]
[378015344,1754669439059,-1520.44,0.00018395,2]
[378015345,1754669439069,-640.9,0.00018395,2]
[378015346,1754669439078,-400.87332951,0.00018395,2]
[378015347,1754669439088,-1142.56,0.00018395,2]
[378015348,1754669439097,-402.03669902,0.00018395,2]
[378015349,1754669439106,-621.81,0.00018395,2]
[378015350,1754669439116,-400.0,0.00018395,2]
[378015351,1754669439126,-500.0,0.00018395,2]
[378015352,1754669439135,-400.0,0.00018395,2]
[378015353,1754669439144,-4083.5,0.00018395,2]
[378015354,1754669439155,-400.0,0.00018395,2]
[378015355,1754669439164,-568.41,0.00018395,2]
[378015356,1754669439173,-524.35,0.00018395,2]
[378015357,1754669439183,-1661.41,0.00018395,2]
[378015358,1754669439193,-1298.89,0.00018395,2]
[378015359,1754669439203,-400.0,0.00018395,2]
[378015360,1754669439212,-400.0,0.00018395,2]
[378015361,1754669439221,-400.0,0.00018395,2]
[378015362,1754669439230,-2454.24,0.00018395,2]
[378015363,1754669439240,-541.43,0.00018395,2]
[378015364,1754669439249,-400.0,0.00018395,2]
[378015365,1754669439258,-540.08,0.00018395,2]
[378015366,1754669439268,-831.09,0.00018395,2]
[378015367,1754669439277,-3674.86,0.00018395,2]
[378015368,1754669439287,-2558.52,0.00018395,2]
[378015369,1754669439296,-400.0,0.00018395,2]
[378015370,1754669439306,-770.46,0.00018395,2]
[378015371,1754669439315,-931.41,0.00018395,2]
[378015372,1754669439324,-1046.41,0.00018395,2]
[378015373,1754669439334,-2675.43,0.00018395,2]
[378015374,1754669439343,-825.25,0.00018395,2]
[378015375,1754669439353,-6608.06,0.00018395,2]
[378015376,1754669439363,-4347.41,0.00018395,2]
[378015377,1754669439372,-1150.05,0.00018395,2]
[378015378,1754669439382,-400.0,0.00018395,2]
[378015379,1754669439392,-1121.59,0.00018395,2]
[378015380,1754669439401,-400.0,0.00018396,2]
[378015381,1754669439411,-400.0,0.00018396,2]
[378015382,1754669439423,-400.0,0.00018396,2]
[378015383,1754669439432,-400.0,0.00018396,2]
[378015384,1754669439442,-400.0,0.00018396,2]
[378015385,1754669439452,-400.0,0.00018396,2]
[378015387,1754669439462,-400.0,0.00018396,2]
[378015388,1754669439472,-400.0,0.00018396,2]
[378015389,1754669439481,-400.0,0.00018396,2]
[378015390,1754669439490,-400.0,0.00018396,2]
[378015391,1754669439500,-458.84,0.00018396,2]
[378015392,1754669439510,-1117.67,0.00018396,2]
[378015393,1754669439519,-400.0,0.00018396,2]
[378015394,1754669439529,-421.41,0.00018396,2]
[378015395,1754669439538,-400.0,0.00018396,2]
[378015396,1754669439547,-400.0,0.00018396,2]
[378015397,1754669439557,-515.38,0.00018396,2]
[378015398,1754669439566,-400.0,0.00018396,2]
[378015400,1754669439576,-1006.42,0.00018396,2]
[378015402,1754669439585,-400.0,0.00018396,2]
[378015404,1754669439594,-497.65,0.00018396,2]
[378015405,1754669439604,-400.0,0.00018396,2]
[378015406,1754669439613,-1001.32,0.00018396,2]
[378015407,1754669439622,-416.27,0.00018396,2]
[378015408,1754669439632,-400.0,0.00018396,2]
[378015409,1754669439641,-400.0,0.00018396,2]
[378015410,1754669439651,-400.0,0.00018396,2]
[378015411,1754669439660,-400.0,0.00018396,2]
[378015412,1754669439671,-403.26106416,0.00018396,2]
[378015413,1754669439680,-400.0,0.00018396,2]
[378015414,1754669439693,-431.24,0.00018396,2]
[378015415,1754669439703,-400.0,0.00018396,2]
[378015416,1754669439712,-328.62,0.00018396,2]
[378015417,1754669439722,-400.0,0.00018396,2]
[378015418,1754669439733,-400.0,0.00018396,2]
[378015419,1754669439742,-400.0,0.00018396,2]
[378015420,1754669439752,-228.58277056,0.00018396,2]
[378015421,1754669439762,-448.93,0.00018396,2]
[378015422,1754669439772,-408.46396836,0.00018396,2]
[378015423,1754669439782,-968.12,0.00018396,2]
[378015424,1754669439791,-429.26671692,0.00018396,2]
[378015425,1754669439801,-400.0,0.00018396,2]
[378015426,1754669439811,-400.0,0.00018396,2]
[378015427,1754669439820,-400.0,0.00018396,2]
[378015428,1754669439829,-400.0,0.00018396,2]
[378015429,1754669439839,-400.0,0.00018396,2]
[378015430,1754669439848,-412.39901297,0.00018396,2]
[378015431,1754669439858,-531.71,0.00018396,2]
[378015432,1754669439867,-409.51756107,0.00018396,2]
[378015433,1754669439877,-402.95754979,0.00018396,2]
[378015434,1754669439887,-400.0,0.00018396,2]
[378015435,1754669439896,-480.93,0.00018396,2]
[378015436,1754669439905,-402.79,0.00018396,2]
[378015437,1754669439916,-400.0,0.00018396,2]
[378015438,1754669439925,-400.0,0.00018396,2]
[378015439,1754669439934,-400.0,0.00018396,2]
[378015440,1754669439944,-400.0,0.00018396,2]
[378015441,1754669439953,-400.0,0.00018396,2]
[378015442,1754669439962,-400.0,0.00018396,2]
[378015443,1754669439972,-400.0,0.00018396,2]
[378015444,1754669439981,-839.4,0.00018396,2]
[378015445,1754669439990,-400.0,0.00018396,2]
[378015446,1754669439999,-400.0,0.00018396,2]
[378015447,1754669440008,-400.0,0.00018396,2]
[378015448,1754669440017,-413.42,0.00018396,2]
[378015449,1754669440027,-595.6,0.00018396,2]
[378015450,1754669440036,-400.0,0.00018396,2]
[378015451,1754669440045,-1000.0,0.00018396,2]
[378015452,1754669440054,-728.4,0.00018396,2]
[378015453,1754669440064,-400.0,0.00018396,2]